[Event "GrandPrix_29.05"]
[Site "Chess.com"]
[Date "2020.05.29"]
[Round "7"]
[White "Murad_Ibrahimli"]
[Black "Bacyanide"]
[Result "1/2-1/2"]
[WhiteElo "2615"]
[BlackElo "2535"]
[TimeControl "600+2"]
[EndTime "12:33:34 PDT"]
[Termination "Game drawn - insufficient material"]

1. d4 {[%clk 0:10:01.9]} 1... d5 {[%clk 0:09:56.5]} 2. c4 {[%clk 0:10:00.3]}
2... e6 {[%clk 0:09:57.3]} 3. Nf3 {[%clk 0:09:59.7]} 3... Nf6 {[%clk 0:09:56.6]}
4. g3 {[%clk 0:09:57.5]} 4... c5 {[%clk 0:09:54.6]} 5. cxd5 {[%clk 0:09:55.5]}
5... exd5 {[%clk 0:09:55.3]} 6. Bg2 {[%clk 0:09:56.1]} 6... Nc6 {[%clk
0:09:55.8]} 7. O-O {[%clk 0:09:57]} 7... Be7 {[%clk 0:09:43.1]} 8. Nc3 {[%clk
0:09:55.3]} 8... O-O {[%clk 0:09:41.8]} 9. dxc5 {[%clk 0:09:54.6]} 9... Bxc5
{[%clk 0:09:41.4]} 10. Bg5 {[%clk 0:09:55.8]} 10... d4 {[%clk 0:09:37.7]} 11.
Bxf6 {[%clk 0:09:55.1]} 11... Qxf6 {[%clk 0:09:38.1]} 12. Nd5 {[%clk 0:09:56.4]}
12... Qd8 {[%clk 0:09:27.9]} 13. Nd2 {[%clk 0:09:56.6]} 13... Re8 {[%clk
0:08:58.3]} 14. Rc1 {[%clk 0:09:53.3]} 14... Bb6 {[%clk 0:08:59.1]} 15. Re1
{[%clk 0:09:08.6]} 15... Bg4 {[%clk 0:08:19.8]} 16. Nf4 {[%clk 0:08:51.7]} 16...
d3 {[%clk 0:07:34.7]} 17. Nxd3 {[%clk 0:08:09.6]} 17... Bxe2 {[%clk 0:06:12.7]}
18. Rxe2 {[%clk 0:08:07.9]} 18... Qxd3 {[%clk 0:06:13.4]} 19. Rxe8+ {[%clk
0:07:07]} 19... Rxe8 {[%clk 0:06:12.8]} 20. Nc4 {[%clk 0:07:08.1]} 20... Qxd1+
{[%clk 0:05:25.9]} 21. Rxd1 {[%clk 0:07:07]} 21... Bc5 {[%clk 0:05:24.8]} 22.
Bxc6 {[%clk 0:06:54.9]} 22... bxc6 {[%clk 0:05:24.7]} 23. Kf1 {[%clk 0:06:56.2]}
23... h5 {[%clk 0:05:20.6]} 24. Rd7 {[%clk 0:06:47]} 24... h4 {[%clk 0:05:03.5]}
25. gxh4 {[%clk 0:05:31.6]} 25... Re4 {[%clk 0:04:57.2]} 26. b3 {[%clk
0:05:32.6]} 26... Rxh4 {[%clk 0:04:57.6]} 27. Kg2 {[%clk 0:05:29.6]} 27... Rf4
{[%clk 0:04:55.9]} 28. f3 {[%clk 0:05:25.7]} 28... g5 {[%clk 0:04:43.6]} 29. h3
{[%clk 0:05:08.5]} 29... Kg7 {[%clk 0:04:25.1]} 30. Nd2 {[%clk 0:03:43.4]} 30...
Rd4 {[%clk 0:03:45.2]} 31. Rxd4 {[%clk 0:03:41]} 31... Bxd4 {[%clk 0:03:47.1]}
32. Nc4 {[%clk 0:03:30.8]} 32... Bc3 {[%clk 0:03:13.9]} 33. f4 {[%clk
0:03:15.7]} 33... Kg6 {[%clk 0:03:07]} 34. Kf3 {[%clk 0:03:13.7]} 34... f5
{[%clk 0:02:19.8]} 35. fxg5 {[%clk 0:03:00]} 35... Kxg5 {[%clk 0:02:21.7]} 36.
h4+ {[%clk 0:02:49.3]} 36... Kf6 {[%clk 0:01:53.5]} 37. Kf4 {[%clk 0:02:41.3]}
37... Be1 {[%clk 0:01:49.4]} 38. h5 {[%clk 0:02:40.1]} 38... Bh4 {[%clk
0:01:50.2]} 39. Na5 {[%clk 0:02:36.1]} 39... Bg5+ {[%clk 0:01:49.7]} 40. Kf3
{[%clk 0:02:35.4]} 40... c5 {[%clk 0:01:47.7]} 41. Nb7 {[%clk 0:02:26.2]} 41...
Bd2 {[%clk 0:01:24.6]} 42. Nd6 {[%clk 0:01:35]} 42... Bc1 {[%clk 0:00:51.7]} 43.
Nb5 {[%clk 0:00:46.3]} 43... a6 {[%clk 0:00:50.1]} 44. Nc7 {[%clk 0:00:42.7]}
44... a5 {[%clk 0:00:50.8]} 45. Na6 {[%clk 0:00:33.3]} 45... Kg5 {[%clk
0:00:51.2]} 46. Nxc5 {[%clk 0:00:33.7]} 46... Kxh5 {[%clk 0:00:52.3]} 47. Nd3
{[%clk 0:00:32.7]} 47... Bd2 {[%clk 0:00:49.2]} 48. Ke2 {[%clk 0:00:25.2]} 48...
Bc3 {[%clk 0:00:50.1]} 49. Nf4+ {[%clk 0:00:24.3]} 49... Kg5 {[%clk 0:00:50.5]}
50. Nd5 {[%clk 0:00:25]} 50... Bb4 {[%clk 0:00:50]} 51. Kf3 {[%clk 0:00:26.1]}
51... Ba3 {[%clk 0:00:49.1]} 52. Nb6 {[%clk 0:00:25.2]} 52... Bb4 {[%clk
0:00:41.3]} 53. a4 {[%clk 0:00:24.2]} 53... Bc3 {[%clk 0:00:35.9]} 54. Nd5
{[%clk 0:00:24.6]} 54... Bd4 {[%clk 0:00:31.8]} 55. b4 {[%clk 0:00:18.1]} 55...
axb4 {[%clk 0:00:32.6]} 56. Nxb4 {[%clk 0:00:19.3]} 56... Kf6 {[%clk 0:00:32.6]}
57. Nc6 {[%clk 0:00:20.4]} 57... Bc5 {[%clk 0:00:30.8]} 58. a5 {[%clk
0:00:21.1]} 58... Ke6 {[%clk 0:00:31.2]} 59. a6 {[%clk 0:00:22.1]} 59... Kd6
{[%clk 0:00:31.6]} 60. a7 {[%clk 0:00:22.9]} 60... Bxa7 {[%clk 0:00:32.4]} 61.
Nxa7 {[%clk 0:00:24]} 61... Kc7 {[%clk 0:00:33.6]} 62. Kf4 {[%clk 0:00:24.8]}
62... Kb6 {[%clk 0:00:35]} 63. Nc8+ {[%clk 0:00:24.4]} 63... Kc7 {[%clk
0:00:35.2]} 64. Ne7 {[%clk 0:00:25.4]} 64... Kd7 {[%clk 0:00:36.2]} 65. Nxf5
{[%clk 0:00:26.6]} 1/2-1/2

[Event "GrandPrix_29.05"]
[Site "Chess.com"]
[Date "2020.05.29"]
[Round "7"]
[White "chessfreak35"]
[Black "KJakubowski"]
[Result "1-0"]
[WhiteElo "2518"]
[BlackElo "2467"]
[TimeControl "600+2"]
[EndTime "12:33:43 PDT"]
[Termination "chessfreak35 won by resignation"]

1. e4 {[%clk 0:10:01.9]} 1... c5 {[%clk 0:09:59.2]} 2. Nf3 {[%clk 0:10:02]} 2...
e6 {[%clk 0:09:59.6]} 3. d4 {[%clk 0:10:03.2]} 3... cxd4 {[%clk 0:10:00.3]} 4.
Nxd4 {[%clk 0:10:04]} 4... Nc6 {[%clk 0:10:01.3]} 5. Nc3 {[%clk 0:10:04.2]} 5...
Qc7 {[%clk 0:10:01.6]} 6. Qd3 {[%clk 0:10:02.8]} 6... a6 {[%clk 0:09:58.5]} 7.
Nxc6 {[%clk 0:10:02.1]} 7... bxc6 {[%clk 0:09:33.8]} 8. Qg3 {[%clk 0:10:01.4]}
8... Qxg3 {[%clk 0:09:31.2]} 9. hxg3 {[%clk 0:10:02]} 9... Nf6 {[%clk
0:08:50.8]} 10. f3 {[%clk 0:09:58.2]} 10... d5 {[%clk 0:08:44.5]} 11. g4 {[%clk
0:09:59.1]} 11... dxe4 {[%clk 0:07:42.3]} 12. g5 {[%clk 0:09:55.8]} 12... Nd5
{[%clk 0:07:43.8]} 13. Nxe4 {[%clk 0:09:55.3]} 13... Nb4 {[%clk 0:07:45.2]} 14.
Kd1 {[%clk 0:09:39.3]} 14... Bb7 {[%clk 0:07:41.7]} 15. c3 {[%clk 0:08:59]}
15... O-O-O+ {[%clk 0:07:38.7]} 16. Bd2 {[%clk 0:09:00]} 16... Nd5 {[%clk
0:07:35]} 17. Kc2 {[%clk 0:09:01.1]} 17... Be7 {[%clk 0:07:20.5]} 18. Bd3 {[%clk
0:08:19.8]} 18... c5 {[%clk 0:06:37]} 19. a3 {[%clk 0:07:52.3]} 19... e5 {[%clk
0:05:52.8]} 20. Rh4 {[%clk 0:06:35.9]} 20... h6 {[%clk 0:05:38.9]} 21. Rah1
{[%clk 0:06:31.1]} 21... Rhf8 {[%clk 0:05:22.2]} 22. gxh6 {[%clk 0:04:24.6]}
22... Bxh4 {[%clk 0:05:20.1]} 23. Rxh4 {[%clk 0:04:24.4]} 23... gxh6 {[%clk
0:05:12.3]} 24. Nxc5 {[%clk 0:04:25.7]} 24... Rg8 {[%clk 0:03:03.4]} 25. g4
{[%clk 0:02:17.2]} 25... Rd6 {[%clk 0:02:36.7]} 26. c4 {[%clk 0:01:26.1]} 26...
Nf4 {[%clk 0:01:43.2]} 27. Bf5+ {[%clk 0:01:24.1]} 27... Kc7 {[%clk 0:01:39.6]}
28. Ba5+ {[%clk 0:00:39.4]} 28... Kb8 {[%clk 0:01:34.3]} 29. Bc3 {[%clk
0:00:40.6]} 29... f6 {[%clk 0:01:24.7]} 30. Rxh6 {[%clk 0:00:37.2]} 30... Rgd8
{[%clk 0:00:47.7]} 31. g5 {[%clk 0:00:25.6]} 31... Ne2 {[%clk 0:00:31.6]} 32.
Nxb7 {[%clk 0:00:20.4]} 32... Kxb7 {[%clk 0:00:30.1]} 33. g6 {[%clk 0:00:21.8]}
33... Nd4+ {[%clk 0:00:22.8]} 34. Bxd4 {[%clk 0:00:19.5]} 34... Rxd4 {[%clk
0:00:20.6]} 35. Be6 {[%clk 0:00:20.8]} 35... Rd2+ {[%clk 0:00:18.9]} 36. Kb1
{[%clk 0:00:20]} 36... Rg2 {[%clk 0:00:17.6]} 37. Rh7+ {[%clk 0:00:20.3]} 37...
Kb6 {[%clk 0:00:18.2]} 38. g7 {[%clk 0:00:21.8]} 38... Rdd2 {[%clk 0:00:19]} 39.
c5+ {[%clk 0:00:18.9]} 39... Kxc5 {[%clk 0:00:19.7]} 40. g8=Q {[%clk 0:00:20]}
40... Rxb2+ {[%clk 0:00:19.4]} 41. Ka1 {[%clk 0:00:21.1]} 41... Rxg8 {[%clk
0:00:20]} 42. Kxb2 {[%clk 0:00:21.1]} 42... Rg3 {[%clk 0:00:17]} 43. Rh3 {[%clk
0:00:21.2]} 43... Rg1 {[%clk 0:00:15]} 44. Bf5 {[%clk 0:00:20.5]} 44... Kd4
{[%clk 0:00:14.5]} 45. Rh6 {[%clk 0:00:21.1]} 45... Ke3 {[%clk 0:00:11.5]} 46.
Be4 {[%clk 0:00:16.9]} 46... f5 {[%clk 0:00:10.3]} 47. Bxf5 {[%clk 0:00:18.4]}
47... Kxf3 {[%clk 0:00:11.8]} 48. Rxa6 {[%clk 0:00:20.1]} 48... e4 {[%clk
0:00:10.6]} 49. Re6 {[%clk 0:00:21.6]} 49... e3 {[%clk 0:00:11.4]} 50. Bd3
{[%clk 0:00:22.9]} 50... Rd1 {[%clk 0:00:10.1]} 51. Bb5 {[%clk 0:00:22.8]} 51...
Rd5 {[%clk 0:00:05.2]} 52. a4 {[%clk 0:00:23.9]} 52... Rd2+ {[%clk 0:00:02.6]}
53. Kc3 {[%clk 0:00:24.6]} 53... Rd1 {[%clk 0:00:03.8]} 54. a5 {[%clk
0:00:24.8]} 54... Ra1 {[%clk 0:00:05.3]} 55. a6 {[%clk 0:00:25.9]} 55... Kf2
{[%clk 0:00:04.7]} 56. Kb4 {[%clk 0:00:26.8]} 56... Ra2 {[%clk 0:00:04]} 57. Kc5
{[%clk 0:00:28]} 57... Rc2+ {[%clk 0:00:03]} 58. Kb6 {[%clk 0:00:29.1]} 58...
Rc8 {[%clk 0:00:02.2]} 59. a7 {[%clk 0:00:30.2]} 59... Rd8 {[%clk 0:00:02.6]}
60. Kb7 {[%clk 0:00:28.5]} 60... e2 {[%clk 0:00:03]} 61. Rxe2+ {[%clk
0:00:28.8]} 1-0

[Event "GrandPrix_29.05"]
[Site "Chess.com"]
[Date "2020.05.29"]
[Round "7"]
[White "Inkalubo"]
[Black "Sunnika"]
[Result "0-1"]
[WhiteElo "1809"]
[BlackElo "2090"]
[TimeControl "600+2"]
[EndTime "12:33:43 PDT"]
[Termination "Sunnika won on time"]

1. Nf3 {[%clk 0:10:00.6]} 1... Nf6 {[%clk 0:10:00.6]} 2. g3 {[%clk 0:10:01.4]}
2... d5 {[%clk 0:10:00.8]} 3. Bg2 {[%clk 0:10:02]} 3... c6 {[%clk 0:10:02.5]} 4.
O-O {[%clk 0:10:01.2]} 4... Bg4 {[%clk 0:10:04.1]} 5. c4 {[%clk 0:10:00]} 5...
e6 {[%clk 0:10:03.4]} 6. d3 {[%clk 0:09:54]} 6... Nbd7 {[%clk 0:09:57.8]} 7. Qb3
{[%clk 0:09:39.3]} 7... Nc5 {[%clk 0:09:55.8]} 8. Qc2 {[%clk 0:09:39.1]} 8... a5
{[%clk 0:09:55.7]} 9. Be3 {[%clk 0:09:34.7]} 9... Nfd7 {[%clk 0:09:24.9]} 10.
Na3 {[%clk 0:09:21.5]} 10... Bd6 {[%clk 0:09:18.8]} 11. Bd4 {[%clk 0:09:10.1]}
11... O-O {[%clk 0:09:17.5]} 12. e4 {[%clk 0:09:04.3]} 12... dxe4 {[%clk
0:09:16.1]} 13. dxe4 {[%clk 0:09:04.1]} 13... Bxf3 {[%clk 0:09:10.6]} 14. Bxf3
{[%clk 0:09:03.3]} 14... e5 {[%clk 0:09:05.7]} 15. Be3 {[%clk 0:09:00.9]} 15...
Ne6 {[%clk 0:09:06.6]} 16. Rad1 {[%clk 0:08:59.2]} 16... Qe7 {[%clk 0:08:47]}
17. Bg4 {[%clk 0:08:36.8]} 17... Bxa3 {[%clk 0:08:38]} 18. bxa3 {[%clk
0:08:33.1]} 18... Ndc5 {[%clk 0:08:39.3]} 19. Qb2 {[%clk 0:08:09.7]} 19... f6
{[%clk 0:08:34.3]} 20. f3 {[%clk 0:07:29.4]} 20... Rfd8 {[%clk 0:08:31.2]} 21.
Qb6 {[%clk 0:07:05.7]} 21... Nd4 {[%clk 0:08:16.8]} 22. Rd2 {[%clk 0:06:48.1]}
22... Na4 {[%clk 0:07:06.1]} 23. Qb1 {[%clk 0:06:36.3]} 23... Qxa3 {[%clk
0:07:06.4]} 24. Bxd4 {[%clk 0:06:18.4]} 24... exd4 {[%clk 0:07:06.4]} 25. Qxb7
{[%clk 0:06:17.4]} 25... Qe3+ {[%clk 0:06:50.1]} 26. Rff2 {[%clk 0:05:21.5]}
26... Nc3 {[%clk 0:06:49.8]} 27. Qxc6 {[%clk 0:05:13.7]} 27... d3 {[%clk
0:06:26.9]} 28. Kg2 {[%clk 0:02:23.2]} 28... Rab8 {[%clk 0:04:49.6]} 29. Qc7
{[%clk 0:02:20.2]} 29... Qb6 {[%clk 0:02:55]} 30. Qf4 {[%clk 0:01:53.3]} 30...
Qc5 {[%clk 0:01:28.8]} 31. Be6+ {[%clk 0:01:46.8]} 31... Kf8 {[%clk 0:01:00.4]}
32. Bd5 {[%clk 0:01:42.8]} 32... Qd4 {[%clk 0:00:38.9]} 33. Qf5 {[%clk
0:01:08.8]} 33... g6 {[%clk 0:00:32.5]} 34. Qe6 {[%clk 0:01:05.9]} 34... Kg7
{[%clk 0:00:33.7]} 35. h4 {[%clk 0:00:23.4]} 35... Re8 {[%clk 0:00:15.9]} 36.
Qf7+ {[%clk 0:00:19.7]} 36... Kh6 {[%clk 0:00:15]} 37. g4 {[%clk 0:00:19.3]}
37... Rf8 {[%clk 0:00:08.6]} 38. Qe7 {[%clk 0:00:10.9]} 38... Nxd5 {[%clk
0:00:06.7]} 39. cxd5 {[%clk 0:00:09.8]} 39... Qe5 {[%clk 0:00:06.6]} 40. Qxe5
{[%clk 0:00:09.5]} 40... fxe5 {[%clk 0:00:08.5]} 41. Rxd3 {[%clk 0:00:10.8]}
41... a4 {[%clk 0:00:07.9]} 42. Ra3 {[%clk 0:00:09.7]} 42... Rb4 {[%clk
0:00:08.2]} 43. Rc2 {[%clk 0:00:08.2]} 43... Rfb8 {[%clk 0:00:07.9]} 44. Kg3
{[%clk 0:00:08.1]} 44... Kg7 {[%clk 0:00:07.7]} 45. g5 {[%clk 0:00:06.9]} 45...
Kf8 {[%clk 0:00:07.5]} 46. Rc7 {[%clk 0:00:07]} 46... Kg8 {[%clk 0:00:06.1]} 47.
Ra7 {[%clk 0:00:07.8]} 47... Rb1 {[%clk 0:00:05.1]} 48. R7xa4 {[%clk 0:00:03.1]}
48... Rc8 {[%clk 0:00:03.8]} 49. Ra8 {[%clk 0:00:02.6]} 49... Rxa8 {[%clk
0:00:04.9]} 50. Rxa8+ {[%clk 0:00:03.2]} 50... Kf7 {[%clk 0:00:06.8]} 51. a4
{[%clk 0:00:02.9]} 51... Ra1 {[%clk 0:00:07]} 52. a5 {[%clk 0:00:03.9]} 52...
Ke7 {[%clk 0:00:07.7]} 53. a6 {[%clk 0:00:04.9]} 53... Kd6 {[%clk 0:00:09.6]}
54. a7 {[%clk 0:00:05.9]} 54... Kc7 {[%clk 0:00:11.5]} 55. Rh8 {[%clk
0:00:06.2]} 55... Rxa7 {[%clk 0:00:10.9]} 56. Rxh7+ {[%clk 0:00:07.2]} 56... Kb6
{[%clk 0:00:12.8]} 57. Rb7+ {[%clk 0:00:07.9]} 57... Kxb7 {[%clk 0:00:13.8]} 0-1

[Event "GrandPrix_29.05"]
[Site "Chess.com"]
[Date "2020.05.29"]
[Round "7"]
[White "Meizon19"]
[Black "Evgeny81"]
[Result "1/2-1/2"]
[WhiteElo "2326"]
[BlackElo "2452"]
[TimeControl "600+2"]
[EndTime "12:33:47 PDT"]
[Termination "Game drawn by agreement"]

1. e4 {[%clk 0:10:01.9]} 1... e5 {[%clk 0:09:59.5]} 2. Nf3 {[%clk 0:10:02.8]}
2... Nc6 {[%clk 0:09:59.5]} 3. Nc3 {[%clk 0:10:03.1]} 3... Nf6 {[%clk
0:09:59.8]} 4. Be2 {[%clk 0:10:04.1]} 4... Bd6 {[%clk 0:09:56.1]} 5. O-O {[%clk
0:10:04.4]} 5... O-O {[%clk 0:09:56.2]} 6. d3 {[%clk 0:10:04.2]} 6... Re8 {[%clk
0:09:55.9]} 7. Bg5 {[%clk 0:10:03.3]} 7... h6 {[%clk 0:09:49.3]} 8. Bh4 {[%clk
0:10:03.5]} 8... Be7 {[%clk 0:09:49.6]} 9. Bg3 {[%clk 0:10:04.3]} 9... d6 {[%clk
0:09:47]} 10. Nd2 {[%clk 0:10:04.1]} 10... Nd4 {[%clk 0:09:39.1]} 11. f4 {[%clk
0:10:02.9]} 11... exf4 {[%clk 0:09:34.1]} 12. Bxf4 {[%clk 0:10:00.5]} 12... d5
{[%clk 0:08:58.4]} 13. e5 {[%clk 0:09:36.4]} 13... Nh7 {[%clk 0:08:55.2]} 14.
Nf3 {[%clk 0:09:09]} 14... Nxe2+ {[%clk 0:08:15.4]} 15. Qxe2 {[%clk 0:09:09.4]}
15... c5 {[%clk 0:08:09.8]} 16. d4 {[%clk 0:08:57.4]} 16... Be6 {[%clk
0:07:43.2]} 17. Rad1 {[%clk 0:08:54.5]} 17... Qb6 {[%clk 0:07:37.9]} 18. Na4
{[%clk 0:08:39.1]} 18... Qc6 {[%clk 0:07:33.6]} 19. Nxc5 {[%clk 0:08:38.9]}
19... Bxc5 {[%clk 0:07:34.8]} 20. dxc5 {[%clk 0:08:40.2]} 20... Qxc5+ {[%clk
0:07:36.4]} 21. Nd4 {[%clk 0:07:55]} 21... Nf8 {[%clk 0:07:30.5]} 22. Qf2 {[%clk
0:07:23.5]} 22... a6 {[%clk 0:05:25.5]} 23. Rd3 {[%clk 0:07:10.6]} 23... Ng6
{[%clk 0:05:04.2]} 24. Bg3 {[%clk 0:06:42.3]} 24... Kh7 {[%clk 0:04:55.1]} 25.
Rc3 {[%clk 0:06:05.9]} 25... Qe7 {[%clk 0:04:43]} 26. Nf5 {[%clk 0:05:44.8]}
26... Bxf5 {[%clk 0:04:28.8]} 27. Qxf5 {[%clk 0:05:45.1]} 27... Kg8 {[%clk
0:04:22.6]} 28. h3 {[%clk 0:05:16.3]} 28... Qe6 {[%clk 0:04:00]} 29. Rc7 {[%clk
0:04:37.7]} 29... Qxf5 {[%clk 0:03:55]} 30. Rxf5 {[%clk 0:04:37.1]} 30... Re7
{[%clk 0:03:56.6]} 31. Rc3 {[%clk 0:04:09.8]} 31... Nf8 {[%clk 0:03:43.8]} 32.
Rd3 {[%clk 0:04:03.5]} 32... Rd7 {[%clk 0:03:26.3]} 33. Rf1 {[%clk 0:03:54.9]}
33... d4 {[%clk 0:02:11.9]} 34. Rfd1 {[%clk 0:03:52.7]} 34... Ne6 {[%clk
0:01:50.1]} 35. c3 {[%clk 0:03:48.9]} 35... Rad8 {[%clk 0:01:50.2]} 36. cxd4
{[%clk 0:03:42.2]} 36... Rxd4 {[%clk 0:01:43.1]} 37. Rxd4 {[%clk 0:03:42.2]}
37... Rxd4 {[%clk 0:01:44.1]} 38. Rxd4 {[%clk 0:03:42.7]} 38... Nxd4 {[%clk
0:01:45.7]} 39. Bf2 {[%clk 0:03:28.6]} 39... Nc6 {[%clk 0:01:40.9]} 40. Bg3
{[%clk 0:03:28]} 40... Kf8 {[%clk 0:01:34.7]} 41. Kf2 {[%clk 0:03:29]} 41... Nb4
{[%clk 0:01:35.7]} 42. Ke3 {[%clk 0:03:17.9]} 42... Nxa2 {[%clk 0:01:34.6]} 43.
Be1 {[%clk 0:03:18.4]} 43... Ke7 {[%clk 0:01:13.4]} 44. Bd2 {[%clk 0:03:11.8]}
44... Ke6 {[%clk 0:01:10.9]} 45. Kd4 {[%clk 0:03:13]} 45... b5 {[%clk
0:00:53.8]} 46. b4 {[%clk 0:03:04.7]} 46... h5 {[%clk 0:00:45.2]} 47. Ke4 {[%clk
0:02:54.7]} 47... h4 {[%clk 0:00:43.9]} 48. Kd4 {[%clk 0:02:53.9]} 48... Kf5
{[%clk 0:00:43.8]} 49. Kd5 {[%clk 0:02:33.7]} 49... g5 {[%clk 0:00:40.9]} 50.
Kd6 {[%clk 0:02:13.2]} 50... Ke4 {[%clk 0:00:26.7]} 51. Bxg5 {[%clk 0:02:02.7]}
51... Nxb4 {[%clk 0:00:26.9]} 52. Bxh4 {[%clk 0:02:04.1]} 52... Nd3 {[%clk
0:00:25]} 53. Bf6 {[%clk 0:02:00.9]} 53... b4 {[%clk 0:00:14.5]} 54. g4 {[%clk
0:01:56]} 54... Nf4 {[%clk 0:00:11.2]} 55. e6 {[%clk 0:01:51.6]} 55... Nxe6
{[%clk 0:00:09.7]} 56. h4 {[%clk 0:01:47.8]} 56... Nd4 {[%clk 0:00:09.8]} 57.
Kc5 {[%clk 0:01:30.6]} 57... Ne6+ {[%clk 0:00:05.9]} 58. Kxb4 {[%clk 0:01:25.8]}
58... Kf4 {[%clk 0:00:07.2]} 59. g5 {[%clk 0:01:08.4]} 59... Kg4 {[%clk
0:00:06.8]} 60. Ka5 {[%clk 0:01:09.7]} 60... Nf8 {[%clk 0:00:04.7]} 61. Kxa6
{[%clk 0:01:10.2]} 61... Kh5 {[%clk 0:00:06]} 62. Kb5 {[%clk 0:01:10.4]} 62...
Ng6 {[%clk 0:00:07.5]} 63. Kc5 {[%clk 0:01:11.5]} 63... Nxh4 {[%clk 0:00:09]}
64. Kd4 {[%clk 0:01:03.8]} 64... Nf3+ {[%clk 0:00:09.8]} 65. Ke4 {[%clk
0:00:59.6]} 65... Nxg5+ {[%clk 0:00:10.8]} 66. Kf5 {[%clk 0:01:00.8]} 66... Ne6
{[%clk 0:00:10.9]} 67. Be7 {[%clk 0:01:00.4]} 67... Ng7+ {[%clk 0:00:11]} 68.
Kf6 {[%clk 0:01:01.4]} 1/2-1/2

[Event "GrandPrix_29.05"]
[Site "Chess.com"]
[Date "2020.05.29"]
[Round "7"]
[White "Grandelicious"]
[Black "yamalchess"]
[Result "1-0"]
[WhiteElo "2667"]
[BlackElo "2428"]
[TimeControl "600+2"]
[EndTime "12:33:51 PDT"]
[Termination "Grandelicious won by resignation"]

1. Nf3 {[%clk 0:10:01.9]} 1... f5 {[%clk 0:09:57.9]} 2. d3 {[%clk 0:09:59.2]}
2... Nc6 {[%clk 0:09:57.5]} 3. e4 {[%clk 0:09:54.7]} 3... e5 {[%clk 0:09:56.6]}
4. d4 {[%clk 0:09:55.8]} 4... fxe4 {[%clk 0:09:49.4]} 5. Nxe5 {[%clk 0:09:56.5]}
5... Nf6 {[%clk 0:09:48.6]} 6. Bc4 {[%clk 0:09:45.7]} 6... d5 {[%clk 0:09:37.9]}
7. Bb5 {[%clk 0:09:46.6]} 7... Bd7 {[%clk 0:09:30.7]} 8. Nxd7 {[%clk 0:09:44.9]}
8... Qxd7 {[%clk 0:09:29.6]} 9. Bg5 {[%clk 0:09:23.4]} 9... Be7 {[%clk
0:09:14.5]} 10. O-O {[%clk 0:09:10.2]} 10... O-O {[%clk 0:09:12.9]} 11. c3
{[%clk 0:09:06]} 11... Qf5 {[%clk 0:08:56]} 12. Bh4 {[%clk 0:08:40.8]} 12... Nd8
{[%clk 0:08:37.8]} 13. f3 {[%clk 0:07:58]} 13... c6 {[%clk 0:08:15.6]} 14. Ba4
{[%clk 0:07:30]} 14... Ne6 {[%clk 0:06:21.5]} 15. Qe1 {[%clk 0:06:01.2]} 15...
Rae8 {[%clk 0:05:06.1]} 16. fxe4 {[%clk 0:05:13.9]} 16... Qxe4 {[%clk
0:04:55.9]} 17. Nd2 {[%clk 0:05:14.6]} 17... Qxe1 {[%clk 0:04:39.9]} 18. Raxe1
{[%clk 0:05:16.5]} 18... Bd6 {[%clk 0:04:39.9]} 19. Bxf6 {[%clk 0:03:12.7]}
19... Rxf6 {[%clk 0:04:35.5]} 20. Rxf6 {[%clk 0:03:13.2]} 20... gxf6 {[%clk
0:04:36.5]} 21. Bd1 {[%clk 0:02:29.8]} 21... Re7 {[%clk 0:04:22.1]} 22. g3
{[%clk 0:02:12.6]} 22... f5 {[%clk 0:03:53]} 23. Bc2 {[%clk 0:00:39.8]} 23...
Ng7 {[%clk 0:03:16.9]} 24. Rxe7 {[%clk 0:00:33.1]} 24... Bxe7 {[%clk 0:03:17.8]}
25. Nf3 {[%clk 0:00:34.7]} 25... Kf7 {[%clk 0:03:13.3]} 26. Kf2 {[%clk
0:00:28.9]} 26... Bd6 {[%clk 0:02:59.6]} 27. Nh4 {[%clk 0:00:14.4]} 27... Kf6
{[%clk 0:02:59.6]} 28. Kf3 {[%clk 0:00:15.3]} 28... h6 {[%clk 0:02:55.5]} 29.
Ng2 {[%clk 0:00:13.9]} 29... Ne6 {[%clk 0:02:54.8]} 30. Ne3 {[%clk 0:00:15]}
30... Ng5+ {[%clk 0:02:54.4]} 31. Kg2 {[%clk 0:00:14.6]} 31... f4 {[%clk
0:02:47]} 32. Nf5 {[%clk 0:00:15.9]} 32... f3+ {[%clk 0:02:37.1]} 33. Kf2 {[%clk
0:00:14.1]} 33... Bf8 {[%clk 0:02:33.8]} 34. Ne3 {[%clk 0:00:13.4]} 34... h5
{[%clk 0:02:31.9]} 35. h4 {[%clk 0:00:14]} 35... Ne4+ {[%clk 0:02:25.8]} 36.
Kxf3 {[%clk 0:00:15.4]} 36... Nd6 {[%clk 0:02:25.2]} 37. Ng2 {[%clk 0:00:15.8]}
37... Bh6 {[%clk 0:02:22.3]} 38. Nf4 {[%clk 0:00:16.9]} 38... Nc4 {[%clk
0:02:22.4]} 39. Nxh5+ {[%clk 0:00:17.1]} 39... Kf7 {[%clk 0:02:22.8]} 40. b3
{[%clk 0:00:18.2]} 40... Nd6 {[%clk 0:02:15.7]} 41. Bd3 {[%clk 0:00:18.9]} 41...
Bd2 {[%clk 0:02:15.1]} 42. c4 {[%clk 0:00:19.5]} 42... Bc3 {[%clk 0:02:13.6]}
43. cxd5 {[%clk 0:00:20.3]} 43... cxd5 {[%clk 0:02:13.7]} 44. Nf4 {[%clk
0:00:21.7]} 44... Bxd4 {[%clk 0:02:13.5]} 45. Nxd5 {[%clk 0:00:23]} 45... a5
{[%clk 0:02:10.2]} 46. g4 {[%clk 0:00:23.4]} 46... Kg7 {[%clk 0:02:08.9]} 47. g5
{[%clk 0:00:24.4]} 47... Nf7 {[%clk 0:02:05.9]} 48. Ke4 {[%clk 0:00:25.2]} 48...
Bb2 {[%clk 0:02:04.8]} 49. Ne3 {[%clk 0:00:23.6]} 49... b5 {[%clk 0:02:01.2]}
50. Nf5+ {[%clk 0:00:18.4]} 50... Kf8 {[%clk 0:02:01.4]} 51. Bxb5 {[%clk
0:00:18.6]} 51... Bc3 {[%clk 0:01:57.7]} 52. Bc4 {[%clk 0:00:19.3]} 52... Ne5
{[%clk 0:01:57.7]} 53. h5 {[%clk 0:00:20]} 53... a4 {[%clk 0:01:55.5]} 54. h6
{[%clk 0:00:20.9]} 54... axb3 {[%clk 0:01:56.1]} 55. axb3 {[%clk 0:00:22.8]}
55... Ng6 {[%clk 0:01:56.8]} 56. Kf3 {[%clk 0:00:21.8]} 56... Ne5+ {[%clk
0:01:56.9]} 57. Kf4 {[%clk 0:00:19.3]} 57... Bb2 {[%clk 0:01:52.9]} 58. Ng7
{[%clk 0:00:18.2]} 58... Ng6+ {[%clk 0:01:52]} 59. Kf5 {[%clk 0:00:19.7]} 59...
Ne7+ {[%clk 0:01:52.8]} 60. Ke6 {[%clk 0:00:18.2]} 60... Bc1 {[%clk 0:01:52.9]}
61. Nf5 {[%clk 0:00:16.1]} 61... Ng6 {[%clk 0:01:42.4]} 62. Kf6 {[%clk
0:00:14.6]} 62... Nf4 {[%clk 0:01:34.4]} 63. g6 {[%clk 0:00:15.8]} 63... Nh5+
{[%clk 0:01:33.6]} 64. Ke5 {[%clk 0:00:14]} 64... Bxh6 {[%clk 0:01:19]} 65. Nxh6
{[%clk 0:00:14.7]} 65... Kg7 {[%clk 0:01:20.4]} 66. Nf5+ {[%clk 0:00:15.3]}
66... Kxg6 {[%clk 0:01:21.8]} 67. Nd6 {[%clk 0:00:15.3]} 67... Nf6 {[%clk
0:01:21.7]} 68. Bd3+ {[%clk 0:00:14.5]} 68... Kg7 {[%clk 0:01:21.1]} 69. b4
{[%clk 0:00:15.1]} 69... Nd7+ {[%clk 0:01:21]} 70. Ke6 {[%clk 0:00:14.6]} 70...
Nb6 {[%clk 0:01:21.7]} 71. Nc4 {[%clk 0:00:15.1]} 71... Na4 {[%clk 0:01:21.5]}
72. Kd6 {[%clk 0:00:16.3]} 72... Kf6 {[%clk 0:01:21.4]} 73. b5 {[%clk
0:00:16.6]} 73... Kf7 {[%clk 0:01:21.8]} 74. Bc2 {[%clk 0:00:16.6]} 74... Nc3
{[%clk 0:01:21.7]} 75. b6 {[%clk 0:00:18]} 75... Nb5+ {[%clk 0:01:21]} 76. Kc5
{[%clk 0:00:19.2]} 1-0